[Event "DVM U12w 2024"]
[Site "Bad Homburg"]
[Date "2024.12.27"]
[Round "1"]
[White "Gelbach, Julietta"]
[Black "Du, Vivian"]
[Result "0-1"]
[ECO "C50"]
[WhiteElo "855"]
[BlackElo "1144"]
[Annotator "NA"]
[PlyCount "118"]
[EventDate "2024.12.23"]
[EventType "team-tourn"]
[EventRounds "7"]
[EventCountry "GER"]
[SourceTitle "playchess.com"]
[Source "ChessBase"]
[SourceQuality "1"]
[TimeControl "40/5400+30:1800+30"]

1. e4 {[%emt 0:00:04]} e5 {[%emt 0:00:06]} 2. Nf3 {[%emt 0:00:16]} Nc6 {[%emt 0:00:07]} 3. Bc4 {[%emt 0:00:42]} Bc5 {[%emt 0:00:07]} 4. d3 {[%emt 0:00:20]} d6 {[%emt 0:00:24]} 5. h3 {[%emt 0:00:17]} Nf6 {[%emt 0:00:16]} 6. Bg5 {[%emt 0:00:52]} h6 {[%emt 0:00:11]} 7. Bh4 {[%emt 0:00:06]} g5 {[%emt 0:00:12]} 8. Bg3 {[%emt 0:00:09]} Qe7 {[%emt 0:00:28]} 9. Nc3 {[%emt 0:00:30]} Bd7 {[%emt 0:00:24]} 10. O-O {[%emt 0:00:30]} O-O-O {[%emt 0:00:10]} 11. Re1 {[%emt 0:00:28]} Rdg8 {[%emt 0:00:20]} 12. a3 {[%emt 0:01:35]} h5 {[%emt 0:00:37]} 13. Bh2 {[%emt 0:01:47]} g4 {[%emt 0:00:14]} 14. hxg4 {[%emt 0:05:33]} hxg4 {[%emt 0:00:11]} 15. Nd2 {[%emt 0:00:32]} g3 {[%emt 0:00:19]} 16. Bxg3 {[%emt 0:01:21]} Rxg3 {[%emt 0:00:13]} 17. Nb3 {[%emt 0:00:21]} Bb6 {[%emt 0:00:22]} 18. Na4 {[%emt 0:00:15]} Rg7 {[%emt 0:00:29]} 19. Nxb6+ {[%emt 0:00:19]} axb6 {[%emt 0:00:09]} 20. Qf3 {[%emt 0:01:27]} Rgh7 {[%emt 0:00:36]} 21. Kf1 {[%emt 0:01:38]} Rh1+ {[%emt 0:01:49]} 22. Ke2 {[%emt 0:00:31]} Rxe1+ {[%emt 0:00:20]} 23. Kxe1 {[%emt 0:00:19]} Rh1+ {[%emt 0:00:15]} 24. Kd2 {[%emt 0:00:18]} Rxa1 {[%emt 0:00:16]} 25. Nxa1 {[%emt 0:00:08]} Nd4 {[%emt 0:00:25]} 26. Qg3 {[%emt 0:01:08]} Qf8 {[%emt 0:00:46]} 27. Qg5 {[%emt 0:02:36]} Ng4 {[%emt 0:01:31]} 28. c3 {[%emt 0:01:37]} Nc6 {[%emt 0:00:34]} 29. f3 {[%emt 0:01:05]} Qh6 {[%emt 0:01:05]} 30. Qxh6 {[%emt 0:01:07]} Nxh6 {[%emt 0:00:19]} 31. g4 {[%emt 0:00:23]} Be6 {[%emt 0:00:35]} 32. Bb5 {[%emt 0:00:40]} Kd8 {[%emt 0:00:29]} 33. Nb3 {[%emt 0:00:50]} Bxb3 {[%emt 0:00:11]} 34. Ke3 {[%emt 0:00:49]} Ke7 {[%emt 0:00:17]} 35. d4 {[%emt 0:00:32]} exd4+ {[%emt 0:00:33]} 36. cxd4 {[%emt 0:00:13]} Kf6 {[%emt 0:00:40]} 37. d5 {[%emt 0:00:30]} Ne7 {[%emt 0:00:19]} 38. Kf4 {[%emt 0:00:19]} Kg6 {[%emt 0:00:38]} 39. g5 {[%emt 0:00:31]} Nhg8 {[%emt 0:00:12]} 40. Bd7 {[%emt 0:00:49]} f6 {[%emt 0:01:10]} 41. Bf5+ {[%emt 0:30:50]} Nxf5 {[%emt 0:30:09]} 42. exf5+ {[%emt 0:00:09]} Kf7 {[%emt 0:00:10]} 43. g6+ {[%emt 0:00:11]} Kg7 {[%emt 0:00:09]} 44. Kg4 {[%emt 0:00:13]} Bxd5 {[%emt 0:00:12]} 45. f4 {[%emt 0:00:14]} Ne7 {[%emt 0:00:33]} 46. b4 {[%emt 0:00:19]} Bc4 {[%emt 0:00:21]} 47. a4 {[%emt 0:00:11]} d5 {[%emt 0:00:14]} 48. Kf3 {[%emt 0:01:38]} d4 {[%emt 0:00:13]} 49. Ke4 {[%emt 0:00:09]} d3 {[%emt 0:00:08]} 50. Ke3 {[%emt 0:00:14]} Nxf5+ {[%emt 0:00:13]} 51. Kd2 {[%emt 0:00:12]} Kxg6 {[%emt 0:00:33]} 52. Kc3 {[%emt 0:00:20]} Kh5 {[%emt 0:00:30]} 53. b5 {[%emt 0:00:18]} Kg4 {[%emt 0:00:10]} 54. Kd2 {[%emt 0:00:12]} Kxf4 {[%emt 0:00:10]} 55. a5 {[%emt 0:00:20]} bxa5 {[%emt 0:00:08]} 56. b6 {[%emt 0:00:08]} cxb6 {[%emt 0:00:10]} 57. Kd1 {[%emt 0:00:11]} Ke3 {[%emt 0:00:25]} 58. Ke1 {[%emt 0:00:11]} d2+ {[%emt 0:00:06]} 59. Kd1 {[%emt 0:00:44]} Bb3# {[%emt 0:00:08]} 0-1

[Event "DVM U12w 2024"]
[Site "Bad Homburg"]
[Date "2024.12.27"]
[Round "1"]
[White "Dinges, Mara"]
[Black "Scharfenberg, Leah"]
[Result "1/2-1/2"]
[ECO "A44"]
[WhiteElo "854"]
[BlackElo "1087"]
[Annotator "NA RC"]
[PlyCount "96"]
[EventDate "2024.12.23"]
[EventType "team-tourn"]
[EventRounds "7"]
[EventCountry "GER"]
[SourceTitle "playchess.com"]
[Source "ChessBase"]
[SourceQuality "1"]
[TimeControl "40/5400+30:1800+30"]

1. d4 {[%emt 0:00:04]} c5 {[%emt 0:00:15]} 2. d5 {[%emt 0:00:08]} e5 {[%emt 0:00:09]} 3. e4 {[%emt 0:00:15]} d6 {[%emt 0:00:17]} 4. Nc3 {[%emt 0:00:11]} Nf6 {[%emt 0:00:28]} 5. Bb5+ {[%emt 0:00:10]} Bd7 {[%emt 0:00:50]} 6. Bxd7+ {[%emt 0:00:09]} Nbxd7 {[%emt 0:00:08]} 7. Nf3 {[%emt 0:00:15]} Be7 {[%emt 0:00:28]} 8. h3 {[%emt 0:00:17]} Nf8 {[%emt 0:00:25]} 9. Be3 {[%emt 0:00:59]} Ng6 {[%emt 0:00:50]} 10. Qd2 {[%emt 0:00:49]} O-O {[%emt 0:01:52]} 11. O-O {[%emt 0:00:31]} h6 {[%emt 0:01:10]} 12. a3 {[%emt 0:00:18]} Nh7 {[%emt 0:00:57]} 13. b4 {[%emt 0:00:29]} b6 {[%emt 0:04:03]} 14. Rfb1 {[%emt 0:03:01]} Bg5 {[%emt 0:05:27]} 15. Bxg5 {[%emt 0:00:38]} Nxg5 {[%emt 0:00:09]} 16. Nxg5 {[%emt 0:00:18]} hxg5 {[%emt 0:03:51]} 17. Qe2 {[%emt 0:02:12]} Nf4 {[%emt 0:03:28]} 18. Qg4 {[%emt 0:00:52]} Qf6 {[%emt 0:10:20]} 19. Ne2 {[%emt 0:01:33]} Rfc8 {[%emt 0:05:09]} 20. Rc1 {[%emt 0:01:03]} Rc7 {[%emt 0:01:34]} 21. Nxf4 {[%emt 0:01:17]} Qxf4 {[%emt 0:00:16]} 22. Qxf4 {[%emt 0:00:31]} gxf4 {[%emt 0:00:07]} 23. f3 {[%emt 0:02:32]} Rac8 {[%emt 0:01:18]} 24. Ra2 {[%emt 0:01:05]} cxb4 {[%emt 0:02:34]} 25. axb4 {[%emt 0:01:14]} Rc4 {[%emt 0:03:36]} 26. Rxa7 {[%emt 0:01:57]} Rxb4 {[%emt 0:02:13]} 27. Rd7 {[%emt 0:01:50]} Rb2 {[%emt 0:03:15]} 28. Rxd6 {[%emt 0:00:42]} b5 {[%emt 0:02:32]} 29. Rc6 {[%emt 0:00:21]} Rb8 {[%emt 0:00:30]} 30. c3 {[%emt 0:00:51]} Ra8 {[%emt 0:01:26]} 31. d6 {[%emt 0:00:51]} Kf8 {[%emt 0:01:17]} 32. h4 {[%emt 0:04:54]} Ke8 {[%emt 0:02:10]} 33. Rd1 {[%emt 0:00:52]} Rd8 {[%emt 0:07:06]} 34. Rc7 {[%emt 0:03:10]} Rb3 {[%emt 0:05:49]} 35. d7+ {[%emt 0:02:33]} Ke7 {[%emt 0:00:12]} 36. Rd5 {[%emt 0:03:37]} Ke6 {[%emt 0:02:49]} 37. Kh2 {[%emt 0:05:19]} b4 {[%emt 0:01:58]} 38. cxb4 {[%emt 0:00:24]} Rxb4 {[%emt 0:00:07]} 39. Rc6+ {[%emt 0:02:28]} Ke7 {[%emt 0:00:14]} 40. Rcd6 {[%emt 0:01:10]} Rb7 {[%emt 0:01:06]} 41. g3 {[%emt 0:31:37]} fxg3+ {[%emt 0:30:47]} 42. Kxg3 {[%emt 0:00:25]} Rbxd7 {[%emt 0:00:12]} 43. Rxd7+ {[%emt 0:00:15]} Rxd7 {[%emt 0:00:05]} 44. Rxe5+ {[%emt 0:00:21]} Kf6 {[%emt 0:00:29]} 45. Rf5+ {[%emt 0:00:30]} Kg6 {[%emt 0:00:37]} 46. h5+ {[%emt 0:00:23]} Kh6 {[%emt 0:00:27]} 47. Rd5 {[%emt 0:01:14]} Re7 {[%emt 0:00:14]} 48. Kg4 {[%emt 0:00:32]} Re6 {[%emt 0:01:11]} 1/2-1/2

[Event "DVM U12w 2024"]
[Site "Bad Homburg"]
[Date "2024.12.27"]
[Round "1"]
[White "Rempel, Katharina"]
[Black "Winkler, Helena"]
[Result "1-0"]
[ECO "D00"]
[WhiteElo "851"]
[BlackElo "778"]
[Annotator "NA"]
[PlyCount "37"]
[EventDate "2024.12.23"]
[EventType "team-tourn"]
[EventRounds "7"]
[EventCountry "GER"]
[SourceTitle "playchess.com"]
[Source "ChessBase"]
[SourceQuality "1"]
[TimeControl "40/5400+30:1800+30"]

1. d4 {[%emt 0:00:30]} d5 {[%emt 0:00:02]} 2. Nc3 {[%emt 0:00:00]} Nf6 {[%emt 0:00:11]} 3. Bf4 {[%emt 0:00:00]} Bd7 {[%emt 0:00:38]} 4. e3 {[%emt 0:00:00]} e6 {[%emt 0:00:13]} 5. f3 {[%emt 0:00:07]} a6 {[%emt 0:00:17]} 6. g4 {[%emt 0:00:45]} Bd6 {[%emt 0:00:23]} 7. h4 {[%emt 0:00:16]} Bxf4 {[%emt 0:00:16]} 8. exf4 {[%emt 0:00:10]} Bc6 {[%emt 0:00:58]} 9. Bd3 {[%emt 0:01:53]} Qd6 {[%emt 0:00:53]} 10. Nge2 {[%emt 0:00:25]} a5 {[%emt 0:01:17]} 11. Qd2 {[%emt 0:02:09]} Na6 {[%emt 0:00:54]} 12. a3 {[%emt 0:01:27]} Rb8 {[%emt 0:00:54]} 13. Qe3 {[%emt 0:01:39]} O-O {[%emt 0:01:52]} 14. g5 {[%emt 0:00:50]} Nd7 {[%emt 0:00:50]} 15. h5 {[%emt 0:01:28]} h6 {[%emt 0:01:01]} 16. gxh6 {[%emt 0:01:09]} gxh6 {[%emt 0:00:21]} 17. Rg1+ {[%emt 0:00:21]} Kh8 {[%emt 0:00:12]} 18. f5 {[%emt 0:00:47]} Rg8 {[%emt 0:00:28]} 19. Qxh6# {[%emt 0:00:40]} 1-0

[Event "DVM U12w 2024"]
[Site "Bad Homburg"]
[Date "2024.12.27"]
[Round "1"]
[White "Senthilkumar, Vasanthi"]
[Black "Zietz, Leni"]
[Result "0-1"]
[ECO "B30"]
[WhiteElo "818"]
[BlackElo "1071"]
[Annotator "NA"]
[PlyCount "82"]
[EventDate "2024.12.23"]
[EventType "team-tourn"]
[EventRounds "7"]
[EventCountry "GER"]
[SourceTitle "playchess.com"]
[Source "ChessBase"]
[SourceQuality "1"]
[TimeControl "40/5400+30:1800+30"]

1. e4 {[%emt 0:00:01]} c5 {[%emt 0:00:01]} 2. Nf3 {[%emt 0:00:22]} d6 {[%emt 0:00:06]} 3. Nc3 {[%emt 0:00:52]} Nc6 {[%emt 0:00:11]} 4. Bc4 {[%emt 0:00:14]} g6 {[%emt 0:00:09]} 5. d3 {[%emt 0:00:25]} Bg7 {[%emt 0:00:15]} 6. Bd2 {[%emt 0:00:30]} Nf6 {[%emt 0:00:20]} 7. O-O {[%emt 0:00:30]} O-O {[%emt 0:00:16]} 8. h3 {[%emt 0:00:17]} a6 {[%emt 0:00:19]} 9. Bf4 {[%emt 0:00:28]} b5 {[%emt 0:00:15]} 10. Bb3 {[%emt 0:00:18]} Bd7 {[%emt 0:00:26]} 11. d4 {[%emt 0:01:47]} cxd4 {[%emt 0:00:28]} 12. Nxd4 {[%emt 0:00:31]} Nxd4 {[%emt 0:01:25]} 13. Qxd4 {[%emt 0:00:27]} e5 {[%emt 0:00:23]} 14. Qd1 {[%emt 0:01:22]} exf4 {[%emt 0:00:30]} 15. Qxd6 {[%emt 0:03:20]} f3 {[%emt 0:00:47]} 16. Qg3 {[%emt 0:02:08]} fxg2 {[%emt 0:00:37]} 17. Qxg2 {[%emt 0:00:46]} Bc6 {[%emt 0:01:03]} 18. Rfe1 {[%emt 0:01:46]} Re8 {[%emt 0:02:06]} 19. Bd5 {[%emt 0:02:53]} Nxd5 {[%emt 0:02:49]} 20. exd5 {[%emt 0:00:56]} Bxc3 {[%emt 0:00:17]} 21. bxc3 {[%emt 0:00:38]} Bxd5 {[%emt 0:00:19]} 22. Rxe8+ {[%emt 0:00:31]} Qxe8 {[%emt 0:00:46]} 23. Qxd5 {[%emt 0:00:23]} Rd8 {[%emt 0:01:01]} 24. Qc5 {[%emt 0:01:01]} Rd2 {[%emt 0:00:51]} 25. Qe3 {[%emt 0:01:06]} Qxe3 {[%emt 0:00:37]} 26. fxe3 {[%emt 0:00:12]} Rxc2 {[%emt 0:00:07]} 27. Re1 {[%emt 0:02:10]} Rxa2 {[%emt 0:00:56]} 28. Rc1 {[%emt 0:01:57]} Kf8 {[%emt 0:00:39]} 29. c4 {[%emt 0:00:46]} b4 {[%emt 0:00:31]} 30. Rb1 {[%emt 0:01:37]} a5 {[%emt 0:00:17]} 31. c5 {[%emt 0:00:35]} Rc2 {[%emt 0:00:10]} 32. Ra1 {[%emt 0:00:45]} Rxc5 {[%emt 0:00:06]} 33. Ra4 {[%emt 0:00:26]} b3 {[%emt 0:00:31]} 34. Ra1 {[%emt 0:00:35]} b2 {[%emt 0:00:25]} 35. Rb1 {[%emt 0:00:15]} Rc2 {[%emt 0:00:14]} 36. Kf1 {[%emt 0:01:37]} a4 {[%emt 0:00:04]} 37. Ke1 {[%emt 0:01:06]} a3 {[%emt 0:00:05]} 38. Kd1 {[%emt 0:00:54]} Rh2 {[%emt 0:00:13]} 39. e4 {[%emt 0:02:14]} a2 {[%emt 0:00:04]} 40. Rxb2 {[%emt 0:00:46]} a1=Q+ {[%emt 0:00:15]} 41. Rb1 {[%emt 0:32:47]} Qxb1# {[%emt 0:30:30]} 0-1

[Event "DVM U12w 2024"]
[Site "Bad Homburg"]
[Date "2024.12.27"]
[Round "1"]
[White "Brandt, Thea"]
[Black "He, Siqi"]
[Result "1-0"]
[ECO "C47"]
[WhiteElo "794"]
[BlackElo "870"]
[Annotator "NA"]
[PlyCount "117"]
[EventDate "2024.12.23"]
[EventType "team-tourn"]
[EventRounds "7"]
[EventCountry "GER"]
[SourceTitle "playchess.com"]
[Source "ChessBase"]
[SourceQuality "1"]
[TimeControl "40/5400+30:1800+30"]

1. e4 {[%emt 0:00:03]} e5 {[%emt 0:00:03]} 2. Nf3 {[%emt 0:00:06]} Nc6 {[%emt 0:00:09]} 3. Nc3 {[%emt 0:00:13]} Nf6 {[%emt 0:00:08]} 4. b3 {[%emt 0:00:10]} Bb4 {[%emt 0:00:23]} 5. Bb2 {[%emt 0:00:10]} Bxc3 {[%emt 0:00:13]} 6. Bxc3 {[%emt 0:00:06]} Nxe4 {[%emt 0:00:09]} 7. Nxe5 {[%emt 0:01:12]} Nxc3 {[%emt 0:00:09]} 8. dxc3 {[%emt 0:00:10]} Nxe5 {[%emt 0:00:10]} 9. Qe2 {[%emt 0:01:06]} Qe7 {[%emt 0:00:04]} 10. f4 {[%emt 0:00:14]} Ng6 {[%emt 0:00:12]} 11. f5 {[%emt 0:00:30]} Qxe2+ {[%emt 0:00:08]} 12. Bxe2 {[%emt 0:00:07]} Nf4 {[%emt 0:00:13]} 13. Bf3 {[%emt 0:00:42]} d6 {[%emt 0:00:18]} 14. g3 {[%emt 0:00:24]} Nh3 {[%emt 0:00:43]} 15. Bg4 {[%emt 0:01:42]} Ng5 {[%emt 0:00:14]} 16. h4 {[%emt 0:00:14]} h5 {[%emt 0:00:43]} 17. hxg5 {[%emt 0:00:38]} hxg4 {[%emt 0:00:53]} 18. Rxh8+ {[%emt 0:00:10]} Ke7 {[%emt 0:00:36]} 19. f6+ {[%emt 0:00:37]} gxf6 {[%emt 0:00:13]} 20. gxf6+ {[%emt 0:00:10]} Kxf6 {[%emt 0:02:15]} 21. Rh6+ {[%emt 0:00:24]} Ke7 {[%emt 0:00:08]} 22. O-O-O {[%emt 0:00:22]} Be6 {[%emt 0:00:18]} 23. Rf1 {[%emt 0:00:43]} Rf8 {[%emt 0:00:19]} 24. a4 {[%emt 0:01:00]} a6 {[%emt 0:00:48]} 25. Re1 {[%emt 0:00:57]} b5 {[%emt 0:00:39]} 26. a5 {[%emt 0:00:31]} Re8 {[%emt 0:01:34]} 27. Rh4 {[%emt 0:00:28]} Kd7 {[%emt 0:00:28]} 28. b4 {[%emt 0:01:12]} c5 {[%emt 0:01:11]} 29. bxc5 {[%emt 0:01:45]} dxc5 {[%emt 0:00:21]} 30. Rd1+ {[%emt 0:00:14]} Kc7 {[%emt 0:00:30]} 31. Rh5 {[%emt 0:00:16]} Kc6 {[%emt 0:00:17]} 32. Rh6 {[%emt 0:02:21]} Kc7 {[%emt 0:00:35]} 33. Rd3 {[%emt 0:01:20]} c4 {[%emt 0:00:47]} 34. Rd4 {[%emt 0:00:00]} Bf5 {[%emt 0:01:03]} 35. Rxa6 {[%emt 0:00:56]} Re3 {[%emt 0:00:51]} 36. Rd5 {[%emt 0:00:39]} Bg6 {[%emt 0:00:28]} 37. Ra7+ {[%emt 0:00:26]} Kc8 {[%emt 0:01:07]} 38. Rc5+ {[%emt 0:00:37]} Kd8 {[%emt 0:01:20]} 39. Rxb5 {[%emt 0:00:22]} Kc8 {[%emt 0:00:16]} 40. a6 {[%emt 0:00:15]} Rxc3 {[%emt 0:00:13]} 41. Ra8+ {[%emt 0:30:14]} Kc7 {[%emt 0:30:12]} 42. Rb7+ {[%emt 0:00:28]} Kd6 {[%emt 0:00:33]} 43. Rd8+ {[%emt 0:00:10]} Kc6 {[%emt 0:00:17]} 44. Rc8+ {[%emt 0:00:56]} Kd6 {[%emt 0:00:25]} 45. Rb6+ {[%emt 0:00:20]} Kd7 {[%emt 0:00:11]} 46. Rcb8 {[%emt 0:01:11]} Rxc2+ {[%emt 0:00:36]} 47. Kb1 {[%emt 0:00:18]} Rc3+ {[%emt 0:00:52]} 48. Kb2 {[%emt 0:00:08]} Rc2+ {[%emt 0:00:17]} 49. Ka3 {[%emt 0:02:35]} Rc3+ {[%emt 0:01:16]} 50. Ka4 {[%emt 0:00:10]} Bc2+ {[%emt 0:00:21]} 51. Kb5 {[%emt 0:00:23]} Bb3 {[%emt 0:01:45]} 52. a7 {[%emt 0:00:24]} Rxg3 {[%emt 0:01:13]} 53. a8=Q {[%emt 0:00:17]} Ba4+ {[%emt 0:01:15]} 54. Qxa4 {[%emt 0:00:21]} Rb3+ {[%emt 0:00:35]} 55. Kc5+ {[%emt 0:00:00]} Rb5+ {[%emt 0:00:23]} 56. Qxb5+ {[%emt 0:00:00]} Ke7 {[%emt 0:00:26]} 57. Qxc4 {[%emt 0:00:00]} g3 {[%emt 0:00:26]} 58. Qe4+ {[%emt 0:00:00]} Kd7 {[%emt 0:00:14]} 59. Qb7# {[%emt 0:00:12]} 1-0

[Event "DVM U12w 2024"]
[Site "Bad Homburg"]
[Date "2024.12.27"]
[Round "1"]
[White "Klymenko, Stefaniia"]
[Black "Kotliarova, Emily"]
[Result "0-1"]
[ECO "C50"]
[WhiteElo "785"]
[BlackElo "1139"]
[Annotator "NA RC"]
[PlyCount "128"]
[EventDate "2024.12.23"]
[EventType "team-tourn"]
[EventRounds "7"]
[EventCountry "GER"]
[SourceTitle "playchess.com"]
[Source "ChessBase"]
[SourceQuality "1"]
[TimeControl "40/5400+30:1800+30"]

1. e4 {[%emt 0:00:04]} e5 {[%emt 0:00:01]} 2. Nf3 {[%emt 0:00:11]} Nc6 {[%emt 0:00:04]} 3. Bc4 {[%emt 0:00:21]} Bc5 {[%emt 0:00:05]} 4. O-O {[%emt 0:00:25]} Nf6 {[%emt 0:00:10]} 5. Nc3 {[%emt 0:00:18]} O-O {[%emt 0:00:13]} 6. d3 {[%emt 0:00:30]} d6 {[%emt 0:00:24]} 7. Bg5 {[%emt 0:00:35]} h6 {[%emt 0:00:09]} 8. Bxf6 {[%emt 0:01:11]} Qxf6 {[%emt 0:00:03]} 9. Nd5 {[%emt 0:00:58]} Qd8 {[%emt 0:00:20]} 10. c3 {[%emt 0:02:18]} Be6 {[%emt 0:01:35]} 11. d4 {[%emt 0:01:20]} exd4 {[%emt 0:00:38]} 12. cxd4 {[%emt 0:00:32]} Na5 {[%emt 0:09:28]} 13. Rc1 {[%emt 0:02:20]} Nxc4 {[%emt 0:00:26]} 14. Rxc4 {[%emt 0:00:32]} c6 {[%emt 0:08:36]} 15. dxc5 {[%emt 0:01:25]} cxd5 {[%emt 0:00:33]} 16. exd5 {[%emt 0:00:24]} Bd7 {[%emt 0:01:20]} 17. cxd6 {[%emt 0:00:48]} Bb5 {[%emt 0:00:12]} 18. b3 {[%emt 0:01:00]} Bxc4 {[%emt 0:01:10]} 19. bxc4 {[%emt 0:00:07]} Qxd6 {[%emt 0:00:16]} 20. Re1 {[%emt 0:00:57]} Rfe8 {[%emt 0:00:23]} 21. Rxe8+ {[%emt 0:03:00]} Rxe8 {[%emt 0:00:02]} 22. Qd4 {[%emt 0:02:41]} Qb4 {[%emt 0:01:49]} 23. h3 {[%emt 0:00:25]} Qb1+ {[%emt 0:00:52]} 24. Kh2 {[%emt 0:01:00]} Qxa2 {[%emt 0:00:30]} 25. d6 {[%emt 0:01:23]} Rd8 {[%emt 0:00:28]} 26. Qh4 {[%emt 0:01:04]} Rxd6 {[%emt 0:04:14]} 27. Qe7 {[%emt 0:01:23]} Re6 {[%emt 0:04:44]} 28. Qd8+ {[%emt 0:00:29]} Kh7 {[%emt 0:00:14]} 29. Qd3+ {[%emt 0:00:34]} g6 {[%emt 0:01:16]} 30. Qd5 {[%emt 0:00:45]} Qxf2 {[%emt 0:04:10]} 31. Qd7 {[%emt 0:01:21]} Rf6 {[%emt 0:02:40]} 32. Qxb7 {[%emt 0:01:38]} Rxf3 {[%emt 0:02:51]} 33. Qxf3 {[%emt 0:00:36]} Qxf3 {[%emt 0:00:04]} 34. gxf3 {[%emt 0:00:40]} Kg8 {[%emt 0:01:13]} 35. c5 {[%emt 0:00:01]} Kf8 {[%emt 0:00:02]} 36. c6 {[%emt 0:00:01]} Ke8 {[%emt 0:00:37]} 37. c7 {[%emt 0:00:21]} Kd7 {[%emt 0:00:05]} 38. c8=Q+ Kxc8 {[%emt 0:00:01]} 39. Kg2 {[%emt 0:00:27]} Kc7 {[%emt 0:00:40]} 40. Kf2 {[%emt 0:00:08]} a5 {[%emt 0:00:30]} 41. Ke2 {[%emt 0:30:11]} Kd6 {[%emt 0:30:11]} 42. Kd2 {[%emt 0:00:08]} Ke5 {[%emt 0:00:22]} 43. Kc3 {[%emt 0:00:09]} Kf4 {[%emt 0:00:14]} 44. Kc4 {[%emt 0:00:06]} Kxf3 {[%emt 0:00:17]} 45. Kb5 {[%emt 0:00:02]} Kg3 {[%emt 0:00:21]} 46. Kxa5 {[%emt 0:00:09]} f5 {[%emt 0:00:07]} 47. Kb4 {[%emt 0:00:06]} f4 {[%emt 0:00:09]} 48. Kc3 {[%emt 0:00:13]} Kg2 {[%emt 0:00:07]} 49. Kd2 {[%emt 0:00:09]} f3 {[%emt 0:00:11]} 50. Ke3 {[%emt 0:00:43]} f2 {[%emt 0:00:08]} 51. Kd2 {[%emt 0:00:12]} f1=Q {[%emt 0:00:11]} 52. Kc3 {[%emt 0:00:30]} Qd1 {[%emt 0:00:09]} 53. Kb2 {[%emt 0:00:20]} Qd5 {[%emt 0:00:46]} 54. Kc3 {[%emt 0:00:12]} Kxh3 {[%emt 0:00:21]} 55. Kc2 {[%emt 0:00:16]} Qd4 {[%emt 0:00:18]} 56. Kb1 {[%emt 0:00:48]} Qc5 {[%emt 0:00:39]} 57. Kb2 {[%emt 0:00:15]} g5 {[%emt 0:00:09]} 58. Kb3 {[%emt 0:00:07]} g4 {[%emt 0:00:11]} 59. Ka4 {[%emt 0:00:08]} Qb6 {[%emt 0:00:13]} 60. Ka3 {[%emt 0:00:00]} g3 {[%emt 0:00:00]} 61. Ka2 {[%emt 0:00:22]} g2 {[%emt 0:00:25]} 62. Ka3 {[%emt 0:00:30]} g1=Q {[%emt 0:00:30]} 63. Ka2 {[%emt 0:00:30]} Qf1 {[%emt 0:00:30]} 64. Ka3 {[%emt 0:00:30]} Qa1# {[%emt 0:00:30]} 0-1